fUSD/lending_fUSD_20240820
["ID","MTS","AMOUNT","RATE_DAILY","PERIOD"]
[335345102,1724143841586,-500.0,0.00010999,2]
[335345103,1724143841595,-500.0,0.00010999,2]
[335345104,1724143841604,-500.0,0.00010999,2]
[335345105,1724143841613,-587.34372149,0.00010999,2]
[335345106,1724143841626,-500.0,0.00010999,2]
[335345107,1724143841635,-500.0,0.00010999,2]
[335345108,1724143841643,-500.0,0.00010999,2]
[335345109,1724143841653,-631.81031447,0.00010999,2]
[335345110,1724143841662,-500.0,0.00010999,2]
[335345111,1724143841672,-167.82577936,0.00010999,2]
[335345112,1724143841681,-500.0,0.00010999,2]
[335345113,1724143841691,-500.0,0.00010999,2]
[335345114,1724143841700,-500.0,0.00010999,2]
[335345115,1724143841709,-517.51452196,0.00010999,2]
[335345116,1724143841719,-500.0,0.00010999,2]
[335345117,1724143841729,-500.0,0.00010999,2]
[335345118,1724143841738,-500.0,0.00010999,2]
[335345119,1724143841747,-552.43,0.00010999,2]
[335345120,1724143841756,-500.0,0.00010999,2]
[335345121,1724143841766,-500.0,0.00010999,2]
[335345122,1724143841775,-500.0,0.00010999,2]
[335345123,1724143841784,-500.0,0.00010999,2]
[335345124,1724143841793,-371.78130894,0.00010999,2]
[335345125,1724143841803,-500.0,0.00010999,2]
[335345126,1724143841812,-500.0,0.00010999,2]
[335345127,1724143841822,-500.0,0.00010999,2]
[335345128,1724143841831,-522.9,0.00010999,2]
[335345129,1724143841840,-500.0,0.00010999,2]
[335345130,1724143841850,-500.0,0.00010999,2]
[335345131,1724143841859,-500.0,0.00010999,2]
[335345132,1724143841869,-412.76932349,0.00010999,2]
[335345133,1724143841878,-500.0,0.00010999,2]
[335345134,1724143841887,-500.0,0.00010999,2]
[335345135,1724143841897,-500.0,0.00010999,2]
[335345136,1724143841907,-500.0,0.00010999,2]
[335345137,1724143841916,-582.17422064,0.00010999,2]
[335345138,1724143841925,-500.0,0.00010999,2]
[335345139,1724143841935,-500.0,0.00010999,2]
[335345140,1724143841944,-500.0,0.00010999,2]
[335345141,1724143841954,-500.0,0.00010999,2]
[335345142,1724143841964,-500.0,0.00010999,2]
[335345143,1724143841974,-500.0,0.00010999,2]
[335345144,1724143841983,-154.72,0.00010999,2]
[335345145,1724143841992,-500.0,0.00010999,2]
[335345146,1724143842002,-500.0,0.00010999,2]
[335345147,1724143842011,-500.0,0.00010999,2]
[335345148,1724143842020,-500.0,0.00010999,2]
[335345149,1724143842030,-500.0,0.00010999,2]
[335345150,1724143842039,-508.97,0.00010999,2]
[335345151,1724143842049,-500.0,0.00010999,2]
[335345152,1724143842058,-500.0,0.00010999,2]
[335345153,1724143842067,-525.74914335,0.00010999,2]
[335345154,1724143842076,-634772.34520335,0.00011,2]
[335345155,1724143842086,-5832670.14752021,0.00011,2]
[335345156,1724143842095,-181287.34727961,0.00011,2]
[335345157,1724143842109,-22512.11144,0.00011,2]
[335345158,1724143842119,-7104.61058235,0.00011,2]
[335345159,1724143842171,-3621.02882917,0.00011,2]
[335345160,1724143842182,-771.144,0.00011,2]
[335345173,1724143843273,-5064.39357,0.00011,2]
[335345187,1724143870732,500.0,8.22e-05,2]
[335345188,1724143872838,412.46289283,8.22e-05,2]
[335345189,1724143902377,500.0,8.22e-05,2]
[335345190,1724143902814,500.0,8.22e-05,2]
[335345191,1724143903394,500.0,8.22e-05,2]
[335345192,1724143968843,543.50517286,8.22e-05,2]
[335345200,1724144092226,369.25,8.219e-05,2]
[335345205,1724144240333,619.69,9.885e-05,2]
[335345206,1724144275681,169.56,9.874e-05,2]
[335345211,1724144376489,351.12,9.875e-05,2]
[335345213,1724144519785,1258.43002117,9.899e-05,2]
[335345215,1724144678635,369.04,8.219e-05,2]
[335345216,1724144695831,504.24,9.787e-05,2]
[335345217,1724144728118,168.2,9.842e-05,2]
[335345218,1724144743376,3618.23,9.835e-05,2]
[335345219,1724144751608,26166.76980326,9.899e-05,2]
[335345220,1724144922056,263.3,9.736e-05,2]
[335345236,1724145032253,-280.515,9.999e-05,2]
[335345237,1724145032312,-19.485,9.999e-05,2]
[335345238,1724145032321,-555.61958265,0.0001,2]
[335345239,1724145035400,-12139.87441605,0.0001,2]
[335345240,1724145035410,-500.0,0.00010065,2]
[335345241,1724145035419,-500.0,0.00010068,2]
[335345242,1724145035429,-400.0,0.000101,3]
[335345243,1724145035440,-800.0,0.000102,3]
[335345244,1724145035449,-500.0,0.00010225,2]
[335345245,1724145035459,-500.0,0.00010259,2]
[335345246,1724145035468,-500.0,0.00010291,2]
[335345247,1724145035477,-500.0,0.00010292,2]
[335345248,1724145035487,-499.99,0.00010292,2]
[335345249,1724145035496,-150.0,0.00010299,2]
[335345250,1724145035505,-1300.0,0.000103,3]
[335345251,1724145035515,-208.77,0.000103,2]
[335345252,1724145035524,-531.44,0.000103,2]
[335345253,1724145035534,-150.0,0.000103,2]
[335345254,1724145035543,-421.4,0.000103,2]
[335345255,1724145035552,-300.0,0.000103,2]
[335345256,1724145035562,-300.0,0.000103,2]
[335345257,1724145035571,-150.0,0.000103,2]
[335345258,1724145035581,-790.63,0.000103,2]
[335345259,1724145035590,-305.34,0.000103,2]
[335345260,1724145035600,-356.83,0.000103,2]
[335345261,1724145035609,-531.44,0.000103,2]
[335345262,1724145035618,-356.83,0.000103,2]
[335345263,1724145035628,-790.63,0.000103,2]
[335345264,1724145035637,-421.4,0.000103,2]
[335345265,1724145035647,-150.46,0.000103,2]
[335345266,1724145035656,-150.0,0.000103,2]
[335345267,1724145035666,-150.0,0.000103,2]
[335345268,1724145035676,-531.44,0.000103,2]
[335345269,1724145035686,-790.63,0.000103,2]
[335345270,1724145035695,-150.0,0.000103,2]
[335345271,1724145035704,-421.4,0.000103,2]
[335345272,1724145035714,-300.0,0.000103,2]
[335345273,1724145035723,-421.4,0.000103,2]
[335345274,1724145035733,-150.0,0.000103,2]
[335345275,1724145035742,-300.0,0.000103,2]
[335345276,1724145035752,-356.83,0.000103,2]
[335345277,1724145035761,-531.44,0.000103,2]
[335345278,1724145035771,-150.0,0.000103,2]
[335345279,1724145035780,-790.63,0.000103,2]
[335345280,1724145035789,-150.0,0.000103,2]
[335345281,1724145035799,-531.44,0.000103,2]
[335345282,1724145035809,-790.63,0.000103,2]
[335345283,1724145035818,-421.4,0.000103,2]
[335345284,1724145035827,-356.83,0.000103,2]
[335345285,1724145035837,-150.35,0.000103,2]
[335345286,1724145035846,-421.4,0.000103,2]
[335345287,1724145035855,-150.0,0.000103,2]
[335345288,1724145035865,-356.83,0.000103,2]
[335345289,1724145035875,-531.44,0.000103,2]
[335345290,1724145035884,-790.63,0.000103,2]
[335345291,1724145035896,-500.0,0.00010338,2]
[335345292,1724145035906,-500.0,0.00010355,2]
[335345293,1724145035915,-500.0,0.00010374,2]
[335345294,1724145035925,-500.0,0.00010396,2]
[335345295,1724145035935,-1700.0,0.000104,3]
[335345296,1724145035946,-500.0,0.00010427,2]
[335345297,1724145035955,-369.04,0.00010465,2]
[335345298,1724145035965,-2200.0,0.000105,3]
[335345299,1724145035977,-500.0,0.00010501,2]
[335345300,1724145035986,-500.0,0.00010582,2]
[335345301,1724145035996,-500.0,0.00010592,2]
[335345302,1724145036005,-790.63,0.00010596,2]
[335345303,1724145036015,-421.4,0.00010596,2]
[335345304,1724145036024,-421.4,0.00010596,2]
[335345305,1724145036034,-421.4,0.000106,2]
[335345306,1724145036043,-426.75,0.000106,2]
[335345307,1724145036052,-300.0,0.000106,2]
[335345308,1724145036061,-400.0,0.000106,3]
[335345309,1724145036071,-500.0,0.00010673,2]
[335345310,1724145036081,-8490.22,0.00010699,2]
[335345311,1724145036090,-934.4656,0.00010699,2]
[335345312,1724145036099,-150.0,0.000107,2]
[335345313,1724145036109,-150.0,0.000107,2]
[335345314,1724145036118,-150.0,0.000107,2]
[335345315,1724145036127,-790.63,0.000107,2]
[335345316,1724145036136,-300.0,0.000107,2]
[335345317,1724145036146,-842.64,0.000107,2]
[335345318,1724145036155,-304.46,0.000107,2]
[335345319,1724145036164,-356.83,0.000107,2]
[335345320,1724145036174,-790.63,0.000107,2]
[335345321,1724145036184,-426.75,0.000107,2]
[335345322,1724145036194,-150.0,0.000107,2]
[335345323,1724145036204,-531.44,0.000107,2]
[335345324,1724145036214,-790.63,0.000107,2]
[335345325,1724145036224,-150.0,0.000107,2]
[335345326,1724145036233,-356.83,0.000107,2]
[335345327,1724145036243,-421.4,0.000107,2]
[335345328,1724145036252,-301.57,0.000107,2]
[335345329,1724145036261,-150.0,0.000107,2]
[335345330,1724145036271,-150.0,0.000107,2]
[335345331,1724145036280,-400.0,0.000107,3]
[335345332,1724145036289,-199.96195181,0.00010725,2]
[335345333,1724145036299,-150.0,0.00010728,2]
[335345334,1724145036308,-150.0,0.00010732,2]
[335345335,1724145036318,-1850.1656,0.00010749,2]
[335345336,1724145036328,-150.0,0.00010751,2]
[335345337,1724145036337,-171.35047999,0.00010773,2]
[335345338,1724145036347,-150.0,0.0001078,2]
[335345339,1724145036356,-13227.346,0.00010781,2]
[335345340,1724145036366,-150.0,0.00010792,2]
[335345341,1724145036375,-7295.67523287,0.000108,2]
[335345342,1724145036385,-2357.89277135,0.000108,2]
[335345343,1724145036394,-400.0,0.000108,3]
[335345344,1724145036405,-3726.0,0.0001083,2]
[335345345,1724145036415,-289.0,0.0001083,2]
[335345346,1724145036424,-5843.0,0.0001083,2]
[335345347,1724145036433,-1204.0,0.0001083,2]
[335345348,1724145036443,-21775.0,0.0001083,2]
[335345349,1724145036453,-1673.0,0.0001083,2]
[335345350,1724145036463,-150.0,0.00010836,2]
[335345351,1724145036472,-963.04272997,0.00010861,2]
[335345352,1724145036482,-304.17876895,0.00010862,2]
[335345353,1724145036491,-150.0,0.00010867,2]
[335345354,1724145036501,-2112.26107616,0.00010888,2]
[335345355,1724145036512,-3000.0,0.0001089,2]
[335345356,1724145036522,-1257.97923635,0.0001089,2]
[335345357,1724145036531,-477.15433899,0.0001089,2]
[335345358,1724145036541,-203.03298078,0.0001089,2]
[335345359,1724145036551,-2500.0,0.00010891,2]
[335345360,1724145036560,-150.0,0.00010898,2]
[335345361,1724145036569,-1636.9819,0.000109,2]
[335345362,1724145036579,-2849.1645,0.000109,2]
[335345363,1724145036589,-9664.7802,0.000109,2]
[335345364,1724145036599,-2045.1683,0.000109,2]
[335345365,1724145036608,-4489.9402,0.000109,2]
[335345366,1724145036618,-545.5327,0.000109,2]
[335345367,1724145036628,-1000.0,0.000109,2]
[335345368,1724145036637,-658.0173,0.000109,2]
[335345369,1724145036648,-167.7305538,0.000109,2]
[335345370,1724145036658,-400.0,0.000109,3]
[335345371,1724145036668,-1462.0,0.000109,2]
[335345372,1724145036677,-588.61245773,0.000109,2]
[335345373,1724145036688,-186.79076405,0.000109,2]
[335345374,1724145036704,-186.6480781,0.000109,2]
[335345375,1724145036714,-410.6556,0.00010932,2]
[335345376,1724145036723,-500.0,0.00010939,2]
[335345377,1724145036734,-1915.0,0.0001094,2]
[335345378,1724145036743,-238.622,0.0001094,2]
[335345379,1724145036752,-1137.0,0.0001094,2]
[335345380,1724145036952,-152.968,0.0001094,2]
[335345381,1724145036962,-150.0,0.00010952,2]
[335345382,1724145036974,-150.0,0.00010959,2]
[335345383,1724145036983,-250.0,0.00010959,2]
[335345384,1724145036993,-151.94,0.00010959,2]
[335345385,1724145037002,-500.0,0.0001096,2]
[335345386,1724145037011,-500.0,0.0001096,2]
[335345387,1724145037022,-500.0,0.0001096,2]
[335345388,1724145037031,-500.0,0.0001096,2]
[335345389,1724145037041,-150.0,0.00010966,2]
[335345390,1724145037050,-150.0,0.00010968,2]
[335345391,1724145037060,-150.0,0.00010979,2]
[335345392,1724145037070,-155.0,0.00010979,2]
[335345393,1724145037079,-155.0,0.00010979,2]
[335345394,1724145037089,-24223.4872929,0.00010989,2]
[335345395,1724145037099,-58647.25160446,0.00010991,2]
[335345396,1724145037108,-590.9307107,0.00010992,2]
[335345397,1724145037118,-494.3364391,0.00010992,2]
[335345398,1724145037127,-397.7421676,0.00010992,2]
[335345399,1724145037136,-301.147896,0.00010992,2]
[335345400,1724145037145,-204.5536245,0.00010992,2]
[335345401,1724145037155,-1027.0162683,0.00010992,2]
[335345402,1724145037164,-859.1389072,0.00010992,2]
[335345403,1724145037174,-691.2615461,0.00010992,2]
[335345404,1724145037183,-523.384185,0.00010992,2]
[335345405,1724145037195,-355.5068239,0.00010992,2]
[335345406,1724145037204,-687.5249822,0.00010994,2]
[335345407,1724145037214,-1194.8936294,0.00010994,2]
[335345408,1724145037223,-185.34119546,0.00010997,2]
[335345409,1724145037232,-500.0,0.00010999,2]
[335345410,1724145037242,-500.0,0.00010999,2]
[335345411,1724145037251,-500.0,0.00010999,2]
[335345412,1724145037260,-486.48,0.00010999,2]
[335345413,1724145037271,-500.0,0.00010999,2]
[335345414,1724145037280,-500.0,0.00010999,2]
[335345415,1724145037290,-500.0,0.00010999,2]
[335345416,1724145037299,-500.0,0.00010999,2]
[335345417,1724145037308,-500.0,0.00010999,2]
[335345418,1724145037318,-500.0,0.00010999,2]
[335345419,1724145037327,-500.0,0.00010999,2]
[335345420,1724145037336,-500.0,0.00010999,2]
[335345421,1724145037345,-500.0,0.00010999,2]
[335345422,1724145037355,-500.0,0.00010999,2]
[335345423,1724145037364,-500.0,0.00010999,2]
[335345424,1724145037374,-500.0,0.00010999,2]
[335345425,1724145037383,-500.0,0.00010999,2]
[335345426,1724145037393,-500.0,0.00010999,2]
[335345427,1724145037403,-528.74279922,0.00010999,2]
[335345428,1724145037412,-500.0,0.00010999,2]
[335345429,1724145037422,-500.0,0.00010999,2]
[335345430,1724145037431,-500.0,0.00010999,2]
[335345431,1724145037442,-500.0,0.00010999,2]
[335345432,1724145037452,-500.0,0.00010999,2]
[335345433,1724145037462,-500.0,0.00010999,2]
[335345434,1724145037472,-500.0,0.00010999,2]
[335345435,1724145037482,-500.0,0.00010999,2]
[335345436,1724145037491,-500.0,0.00010999,2]
[335345437,1724145037501,-500.0,0.00010999,2]
[335345438,1724145037510,-500.0,0.00010999,2]
[335345439,1724145037520,-500.0,0.00010999,2]
[335345440,1724145037530,-500.0,0.00010999,2]
[335345441,1724145037539,-500.0,0.00010999,2]
[335345442,1724145037548,-500.0,0.00010999,2]
[335345443,1724145037558,-500.0,0.00010999,2]
[335345444,1724145037567,-500.0,0.00010999,2]
[335345445,1724145037576,-500.0,0.00010999,2]
[335345446,1724145037586,-500.0,0.00010999,2]
[335345447,1724145037596,-633.94493513,0.00010999,2]
[335345448,1724145037605,-500.0,0.00010999,2]
[335345449,1724145037615,-500.0,0.00010999,2]
[335345450,1724145037624,-500.0,0.00010999,2]
[335345451,1724145037634,-500.0,0.00010999,2]
[335345452,1724145037643,-500.0,0.00010999,2]
[335345453,1724145037653,-500.0,0.00010999,2]
[335345454,1724145037663,-500.0,0.00010999,2]
[335345455,1724145037672,-500.0,0.00010999,2]
[335345456,1724145037682,-500.0,0.00010999,2]
[335345457,1724145037692,-537.82150392,0.00010999,2]
[335345458,1724145037701,-500.0,0.00010999,2]
[335345459,1724145037711,-500.0,0.00010999,2]
[335345460,1724145037720,-500.0,0.00010999,2]
[335345461,1724145037730,-500.0,0.00010999,2]
[335345462,1724145037739,-500.0,0.00010999,2]
[335345463,1724145037748,-500.0,0.00010999,2]
[335345464,1724145037758,-519.35218653,0.00010999,2]
[335345465,1724145037767,-500.0,0.00010999,2]
[335345466,1724145037777,-500.0,0.00010999,2]
[335345467,1724145037786,-500.0,0.00010999,2]
[335345468,1724145037795,-500.0,0.00010999,2]
[335345469,1724145037805,-500.0,0.00010999,2]
[335345470,1724145037814,-500.0,0.00010999,2]
[335345471,1724145037823,-500.0,0.00010999,2]
[335345472,1724145037833,-552.43,0.00010999,2]
[335345473,1724145037842,-500.0,0.00010999,2]
[335345474,1724145037851,-500.0,0.00010999,2]
[335345475,1724145037861,-500.0,0.00010999,2]
[335345476,1724145037871,-500.0,0.00010999,2]
[335345477,1724145037880,-413.3316342,0.00010999,2]
[335345478,1724145037891,-500.0,0.00010999,2]
[335345479,1724145037904,-500.0,0.00010999,2]
[335345480,1724145037913,-500.0,0.00010999,2]
[335345481,1724145037922,-500.0,0.00010999,2]
[335345482,1724145037932,-350.45505662,0.00010999,2]
[335345483,1724145037943,-500.0,0.00010999,2]
[335345484,1724145037952,-500.0,0.00010999,2]
[335345485,1724145037961,-500.0,0.00010999,2]
[335345486,1724145037971,-500.0,0.00010999,2]
[335345487,1724145037980,-500.0,0.00010999,2]
[335345488,1724145037989,-486.73954161,0.00010999,2]
[335345489,1724145037998,-500.0,0.00010999,2]
[335345490,1724145038007,-500.0,0.00010999,2]
[335345491,1724145038016,-500.0,0.00010999,2]
[335345492,1724145038026,-500.0,0.00010999,2]
[335345493,1724145038035,-500.0,0.00010999,2]
[335345494,1724145038044,-500.0,0.00010999,2]
[335345495,1724145038053,-500.0,0.00010999,2]
[335345496,1724145038063,-163.78829395,0.00010999,2]
[335345497,1724145038072,-420.0,0.00010999,2]
[335345499,1724145038081,-500.0,0.00010999,2]
[335345500,1724145038090,-500.0,0.00010999,2]
[335345501,1724145038099,-500.0,0.00010999,2]
[335345502,1724145038108,-500.0,0.00010999,2]
[335345503,1724145038117,-500.0,0.00010999,2]
[335345504,1724145038126,-500.0,0.00010999,2]
[335345505,1724145038135,-183928.51026951,0.00011,2]
[335345515,1724145038360,-16453.60772796,0.00011,2]
[335345516,1724145038371,-111101.76355099,0.00011,2]
[335345517,1724145038406,-1476.60032112,0.00011,2]
[335345518,1724145038520,-4730.95073209,0.00011,2]
[335345519,1724145038531,-25287.35781882,0.00011,2]
[335345520,1724145038542,-1851.28133172,0.00011,2]
[335345521,1724145038553,-966.78671617,0.00011,2]
[335345522,1724145038564,-9011.29504231,0.00011,2]
[335345523,1724145038578,-12504.31307594,0.00011,2]
[335345574,1724145040541,-1190990.7710722,0.00011,2]
[335345575,1724145040551,-3412.52439196,0.00011,2]
[335345576,1724145040561,-200.0,0.00011,2]
[335345577,1724145040570,-200.0,0.00011,2]
[335345578,1724145040579,-200.0,0.00011,2]
[335345579,1724145040589,-200.0,0.00011,2]
[335345580,1724145040598,-250.0,0.00011,2]
[335345581,1724145040608,-200034.56209322,0.00011,2]
[335345582,1724145040617,-250.0,0.00011,2]
[335345583,1724145040626,-4516625.87099027,0.00011,2]
[335345584,1724145040638,-281576.61977177,0.00011,2]
[335345585,1724145040650,-39982.21591552,0.00011,2]
[335345586,1724145040662,-219921.24735327,0.00011,2]
[335345587,1724145040672,-379.9422459,0.00011,2]
[335345588,1724145040683,-688.59422667,0.00011,2]
[335345589,1724145040696,-3054.19398321,0.00011,2]
[335345590,1724145040707,-6032.55630432,0.00011,2]
[335345591,1724145040718,-976.22792937,0.00011,2]
[335345592,1724145040778,-3733.35497294,0.00011,2]
[335345593,1724145040790,-354.56657673,0.00011,2]
[335345594,1724145040801,-300.50078903,0.00011,2]
[335345605,1724145043468,-673.14206966,0.0001083,2]
[335345606,1724145043896,-403.85793034,0.0001083,2]
[335345607,1724145043908,-222.94150994,0.00010869,2]
[335345608,1724145043918,-8894.72158728,0.00011,2]
[335345609,1724145043930,-3898.14041674,0.00011,2]
[335345610,1724145043941,-237808.08987569,0.00011,2]
[335345611,1724145043961,-27908.50961047,0.00011,2]
[335345612,1724145043972,-643.5020561,0.00011,2]
[335345620,1724145046408,-500.0,0.0001,2]
[335345621,1724145046417,-500.0,0.0001,2]
[335345622,1724145046427,-790.63,0.000103,2]
[335345623,1724145046436,-356.83,0.000103,2]
[335345624,1724145046445,-531.44,0.000103,2]
[335345625,1724145046455,-421.4,0.000103,2]
[335345626,1724145046464,-46730.94105132,0.00011,2]
[335345627,1724145046475,-8515.89,0.00011,2]
[335345628,1724145046486,-40637.43076967,0.00011,2]
[335345629,1724145046496,-11537.57862452,0.00011,2]
[335345630,1724145046510,-3895.98548099,0.00011,2]
[335345631,1724145046520,-8772.80131264,0.00011,2]
[335345632,1724145046532,-2137.90186013,0.00011,2]
[335345633,1724145046543,-1792.22770137,0.00011,2]
[335345634,1724145046586,-320.87604817,0.00011,2]
[335345635,1724145046597,-1078.57073008,0.00011,2]
[335345639,1724145074724,500.0,8.22e-05,2]
[335345640,1724145074779,500.0,8.22e-05,2]
[335345641,1724145077505,500.0,8.22e-05,2]
[335345642,1724145131922,500.0,8.22e-05,2]
[335345644,1724145173900,500.0,8.22e-05,2]
[335345645,1724145180411,500.0,8.22e-05,2]
[335345646,1724145183011,500.0,8.22e-05,2]
[335345647,1724145199385,370.47,8.219e-05,2]
[335345648,1724145201526,500.0,8.22e-05,2]
[335345649,1724145343651,5000.0,0.00014,32]
[335345652,1724145613798,303.48988881,9.899e-05,2]
[335345653,1724145662502,403.4,9.848e-05,2]
[335345654,1724145662980,371.02,8.219e-05,2]
[335345655,1724145820299,162.05,9.829e-05,2]
[335345656,1724145866269,263.3,9.755e-05,2]
[335345658,1724145936478,21278.05531702,9.5e-05,2]
[335345659,1724145955694,23678.72672326,6.94e-05,2]
[335345703,1724146131674,192.86,9.749e-05,2]
[335345706,1724146149914,332.79,9.733e-05,2]
[335345713,1724146168799,155.0,8.412e-05,2]
[335345716,1724146210627,23899.15,9.726e-05,2]
[335345722,1724146231755,-166.85,9.991e-05,2]
[335345723,1724146231765,-300.0,9.999e-05,2]
[335345724,1724146231774,-1297.98969561,9.999e-05,2]
[335345725,1724146231784,-500.0,0.0001,2]
[335345726,1724146231794,-309.33,0.0001,2]
[335345727,1724146231803,-500.0,0.0001,2]
[335345728,1724146231813,-227.71,0.0001,2]
[335345729,1724146231822,-739.81247859,0.0001,2]
[335345730,1724146231834,-310.18752141,0.0001,2]
[335345731,1724146231843,-186.25460476,0.0001,2]
[335345732,1724146231852,-222.98206933,0.0001,2]
[335345733,1724146231867,-47.90461527,0.0001,2]
[335345734,1724146231876,-317.44749079,0.00010001,2]
[335345735,1724146231887,-182.55250921,0.00010001,2]
[335345736,1724146231897,-596.6,0.00010037,2]
[335345737,1724146231906,-500.0,0.00010198,2]
[335345738,1724146231915,-500.0,0.00010211,2]
[335345739,1724146231926,-500.0,0.0001028,2]
[335345740,1724146231935,-150.0,0.000103,2]
[335345741,1724146231945,-499.99,0.00010329,2]
[335345742,1724146231955,-371.02,0.00010468,2]
[335345743,1724146231964,-500.0,0.00010486,2]
[335345744,1724146231973,-150.0,0.00010499,2]
[335345745,1724146231982,-835.92,0.000105,2]
[335345746,1724146231991,-150.0,0.000105,2]
[335345747,1724146232001,-150.0,0.000105,2]
[335345748,1724146232011,-1062.68,0.000105,2]
[335345749,1724146232020,-790.63,0.000105,2]
[335345750,1724146232029,-421.4,0.000105,2]
[335345751,1724146232038,-531.34,0.000105,2]
[335345752,1724146232047,-421.4,0.000105,2]
[335345753,1724146232057,-356.76,0.000105,2]
[335345754,1724146232066,-790.63,0.000105,2]
[335345755,1724146232076,-790.63,0.000105,2]
[335345756,1724146232085,-421.4,0.000105,2]
[335345757,1724146232094,-421.4,0.000105,2]
[335345758,1724146232103,-790.63,0.000105,2]
[335345759,1724146232113,-1682.5,0.000105,2]
[335345760,1724146232122,-500.0,0.00010551,2]
[335345761,1724146232131,-477.15433899,0.00010566,2]
[335345762,1724146232141,-774.75505705,0.00010567,2]
[335345763,1724146232150,-150.0,0.000106,2]
[335345764,1724146232159,-150.0,0.000106,2]
[335345765,1724146232168,-150.0,0.000106,2]
[335345766,1724146232179,-150.0,0.000106,2]
[335345767,1724146232188,-842.72,0.000106,2]
[335345768,1724146232198,-356.83,0.000106,2]
[335345769,1724146232207,-532.07,0.000106,2]
[335345770,1724146232216,-790.63,0.000106,2]
[335345771,1724146232226,-150.0,0.000106,2]
[335345772,1724146232235,-790.63,0.000106,2]
[335345773,1724146232244,-150.0,0.000106,2]
[335345774,1724146232254,-518.27,0.000106,2]
[335345775,1724146232263,-155.18402586,0.00010607,2]
[335345776,1724146232272,-500.0,0.00010654,2]
[335345777,1724146232281,-1500.0,0.00010739,2]
[335345778,1724146232291,-181.15819189,0.00010799,2]
[335345779,1724146232304,-2816.0,0.00010813,2]
[335345780,1724146232313,-12207.5368,0.0001084,2]
[335345781,1724146232322,-500.0,0.00010842,2]
[335345782,1724146232331,-155.0,0.00010862,2]
[335345783,1724146232341,-500.0,0.00010865,2]
[335345784,1724146232352,-29019.9015,0.0001088,2]
[335345785,1724146232361,-246.901,0.00010889,2]
[335345786,1724146232373,-289.9408,0.00010889,2]
[335345787,1724146232383,-9058.67091685,0.0001089,2]
[335345788,1724146232391,-2222.64281,0.0001089,2]
[335345789,1724146232400,-305.9287,0.00010891,2]
[335345790,1724146232409,-1500.0,0.00010892,2]
[335345791,1724146232419,-500.0,0.00010897,2]
[335345792,1724146232428,-203.03298078,0.00010899,2]
[335345793,1724146232437,-26162.99714244,0.000109,2]
[335345794,1724146232449,-87139.39025756,0.000109,2]
[335345795,1724146232458,-317.61944198,0.000109,2]
[335345796,1724146232467,-999.303,0.0001094,2]
[335345797,1724146232476,-152.63087406,0.00010949,2]
[335345798,1724146232485,-250.0,0.00010959,2]
[335345799,1724146232495,-374.78,0.00010959,2]
[335345800,1724146232504,-150.0,0.00010959,2]